bitfinex/quotes_ETHUSD_20240608
["timestamp","ask_amount","ask_price","bid_price","bid_amount"]
[1717832809174,3.34625109,3708.9,3708.5,0.4224506]
[1717832809478,2.76323246,3708.9,3708.5,0.4224506]
[1717832819058,2.76323246,3708.9,3708.6,0.714]
[1717832819548,2.76323246,3708.9,3708.7,0.4224506]
[1717832822557,3.34625109,3708.9,3708.7,0.4224506]
[1717832822717,2.76323246,3708.9,3708.7,0.4224506]
[1717832824594,0.06702246,3708.9,3708.7,0.4224506]
[1717832825089,0.58301863,3709.1,3708.7,0.4224506]
[1717832825393,2.69618,3709.0,3708.7,0.4224506]
[1717832825693,2.76043908,3709.0,3708.7,0.4224506]
[1717832826077,3.34345771,3709.0,3708.7,0.4224506]
[1717832826253,2.76043908,3709.0,3708.7,0.4224506]
[1717832842191,2.76043908,3709.0,3708.5,0.4224506]
[1717832843708,2.69644,3708.6,3708.3,0.4224506]
[1717832843914,0.06426572,3708.5,3708.3,0.4224506]
[1717832845496,2.69659,3708.4,3707.9,2.6916506]
[1717832845941,2.69674,3708.2,3707.9,0.4224506]
[1717832846297,0.06400004,3708.1,3707.9,0.4224506]
[1717832846846,2.69674,3708.2,3707.9,0.4224506]
[1717832847797,2.697,3707.9,3707.7,0.4224506]
[1717832848657,2.697,3707.9,3707.6,2.2692]
[1717832848795,2.697,3707.9,3707.5,13.5164506]
[1717832848990,2.697,3707.9,3707.6,0.55]
[1717832849239,2.697,3707.9,3707.5,12.38]
[1717832849404,2.69708,3707.7,3707.5,12.38]
[1717832850353,0.06358814,3707.6,3707.5,12.38]
[1717832850509,2.69725,3707.5,3707.1,1.1364506]
[1717832856562,2.69725,3707.5,3707.3,1.1364506]
[1717832856764,0.06348184,3707.4,3707.3,1.1364506]
[1717832859559,0.06348184,3707.4,3707.3,1.6864506]
[1717832860968,0.06348184,3707.4,3707.3,0.9724506]
[1717832863769,0.06348184,3707.4,3707.3,3.2584506]
[1717832864271,0.06299687,3707.4,3707.3,3.2584506]
[1717832864866,0.062827,3707.7,3707.6,0.4224506]
[1717832865022,0.062827,3707.7,3707.6,0.9724506]
[1717832871866,0.12602321,3707.7,3707.6,0.9724506]
[1717832872052,0.062827,3707.7,3707.6,0.9724506]
[1717832881177,2.69716,3707.6,3707.4,0.4224506]
[1717832881538,0.06310981,3707.5,3707.4,0.4224506]
[1717832881767,0.06310981,3707.5,3707.4,0.9724506]
[1717832882776,2.6973,3707.4,3707.2,0.4224506]
[1717832883237,2.6973,3707.4,3707.2,1.1364506]
[1717832883648,2.6973,3707.4,3707.2,0.4224506]
[1717832883882,0.06293041,3707.3,3707.2,0.4224506]
[1717832885139,0.37104732,3707.3,3707.0,0.4224506]
[1717832885465,2.69745,3707.2,3707.0,0.4224506]
[1717832885666,2.69745,3707.2,3706.7,0.4224506]
[1717832892047,0.0674476,3707.1,3706.6,0.714]
[1717832892251,0.0674476,3707.1,3706.5,0.4224506]
[1717832892252,2.69763,3707.0,3706.5,1.1364506]
[1717832892472,2.69763,3707.0,3706.5,0.4224506]
[1717832894765,3.012333,3707.0,3706.5,0.4224506]
[1717832894987,2.69775,3706.8,3706.5,0.4224506]
[1717832895589,0.06197999,3706.7,3706.5,0.4224506]
[1717832895965,0.06197999,3706.6,3706.5,0.4224506]
[1717832896164,2.69775,3706.8,3706.5,0.4224506]
[1717832896363,0.06197999,3706.7,3706.5,0.4224506]
[1717832896786,0.06197332,3706.6,3706.5,0.4224506]
[1717832897188,2.69775,3706.8,3706.5,5.4224506]
[1717832897751,0.06197332,3706.7,3706.5,5.4224506]
[1717832898096,2.69775,3706.8,3706.5,5.4224506]
[1717832898560,0.06197332,3706.7,3706.5,5.4224506]
[1717832898802,2.69775,3706.8,3706.5,5.4224506]
[1717832898982,0.06197332,3706.6,3706.5,5.4224506]
[1717832899183,2.69775,3706.8,3706.5,5.4224506]
[1717832899426,0.06196005,3706.7,3706.5,5.4224506]
[1717832899594,2.69775,3706.8,3706.5,5.4224506]
[1717832899799,0.06196005,3706.7,3706.5,5.4224506]
[1717832900029,2.69775,3706.8,3706.5,5.4224506]
[1717832900231,0.06196005,3706.6,3706.5,5.4224506]
[1717832900385,2.69775,3706.8,3706.5,5.4224506]
[1717832900592,0.06196005,3706.7,3706.5,5.4224506]
[1717832900891,2.69775,3706.8,3706.5,5.4224506]
[1717832901087,0.06196005,3706.6,3706.5,5.4224506]
[1717832901302,2.69775,3706.8,3706.5,5.4224506]
[1717832901501,0.06196005,3706.6,3706.5,5.4224506]
[1717832901731,2.69775,3706.8,3706.5,5.4224506]
[1717832901892,0.06196005,3706.6,3706.5,5.4224506]
[1717832902092,2.69775,3706.8,3706.5,5.4224506]
[1717832902322,0.06196005,3706.6,3706.5,5.4224506]
[1717832902527,2.69775,3706.8,3706.5,5.4224506]
[1717832902716,0.06196005,3706.6,3706.5,5.4224506]
[1717832902897,2.69775,3706.8,3706.5,5.4224506]
[1717832903098,0.06196005,3706.6,3706.5,6.1364506]
[1717832903319,2.69775,3706.8,3706.5,6.6864506]
[1717832903802,2.69775,3706.8,3706.5,5.9724506]
[1717832907201,2.69775,3706.8,3706.5,6.6864506]
[1717832907518,2.69775,3706.8,3706.7,0.4224506]
[1717832907704,2.69775,3706.8,3706.7,1.6864506]
[1717832908045,2.69747,3707.2,3706.7,1.6864506]
[1717832908232,0.06193345,3706.8,3706.7,1.6864506]
[1717832908544,2.69747,3707.2,3706.7,1.6864506]
[1717832908766,0.06205975,3706.8,3706.7,1.6864506]
[1717832908952,2.69747,3707.2,3706.7,1.6864506]
[1717832909452,0.06205975,3707.1,3706.7,1.6864506]
[1717832909931,0.06205975,3707.1,3706.7,0.9724506]
[1717832913341,2.69761,3707.0,3706.7,0.9724506]
[1717832913913,0.06205975,3706.9,3706.7,0.9724506]
[1717832916607,0.06205975,3706.9,3706.5,5.4224506]
[1717832916812,2.69761,3707.0,3706.5,5.4224506]
[1717832917034,2.967371,3707.0,3706.5,5.4224506]
[1717832917242,2.69775,3706.8,3706.5,5.4224506]
[1717832917753,2.69775,3706.8,3706.5,5.0]
[1717832917931,0.06205975,3706.7,3706.5,5.0]
[1717832918343,2.69775,3706.8,3706.5,5.0]
[1717832918538,0.06194674,3706.6,3706.5,5.0]
[1717832918850,0.06188693,3706.6,3706.5,5.0]
[1717832919158,2.69775,3706.8,3706.5,5.0]
[1717832919627,0.06182043,3706.7,3706.5,5.0]
[1717832919831,2.69775,3706.8,3706.5,5.0]
[1717832920029,0.06182043,3706.6,3706.5,5.0]
[1717832920354,2.69775,3706.8,3706.5,5.0]
[1717832920558,0.06182043,3706.6,3706.5,5.0]
[1717832920729,2.69775,3706.8,3706.5,5.0]
[1717832920931,0.06182043,3706.6,3706.5,5.0]
[1717832921466,2.69775,3706.8,3706.5,5.0]
[1717832921666,0.06182043,3706.6,3706.5,5.0]
[1717832921963,2.69775,3706.8,3706.5,5.0]
[1717832922158,0.06182043,3706.6,3706.5,5.0]
[1717832922360,2.69747,3707.2,3706.8,0.4224506]
[1717832922567,3.28037394,3707.6,3707.1,3.0287]
[1717832922769,2.69716,3707.6,3707.3,0.714]
[1717832923076,2.6973,3707.4,3706.8,0.4224506]
[1717832923216,3.1467,3707.4,3706.8,0.4224506]
[1717832924985,2.69748,3707.2,3706.8,0.4224506]
[1717832926686,2.69748,3707.2,3706.5,5.0]
[1717832929288,2.69748,3707.2,3706.6,0.714]
[1717832929492,2.69748,3707.2,3706.6,1.1364506]
[1717832931424,0.06177389,3707.1,3706.6,1.1364506]
[1717832943984,0.06177389,3707.1,3706.8,0.714]
[1717832947804,0.06177389,3707.1,3706.8,0.4224506]
[1717832950870,0.06177389,3707.1,3706.9,0.714]
[1717832957202,0.06177389,3707.1,3706.8,0.4224506]
[1717832968575,0.06177389,3707.1,3707.0,2.3134]
[1717832968779,0.06177389,3707.1,3707.0,3.4498506]
[1717832968987,0.06177389,3707.1,3707.0,3.9998506]
[1717832969199,2.69717,3707.6,3707.0,3.9998506]
[1717832969505,0.3476095,3708.7,3707.6,0.008]
[1717832969704,2.69672,3708.2,3708.1,0.008]
[1717832969862,4.08957466,3708.2,3707.9,0.008]
[1717832970969,2.69672,3708.2,3707.9,0.008]
[1717832971375,2.69672,3708.2,3708.0,0.008]
[1717832971575,0.17461727,3708.4,3708.1,0.714]
[1717832971797,0.17461727,3708.4,3708.2,0.008]
[1717832972370,0.17461727,3708.4,3708.3,0.714]
[1717832972570,0.17461727,3708.4,3708.3,0.722]
[1717832975704,0.17461727,3708.4,3708.3,1.1444506]
[1717832975892,0.17461727,3708.4,3708.3,1.6944506]
[1717832977274,0.17461727,3708.4,3708.3,4.0078506]
[1717832981739,0.17461727,3708.4,3708.3,5.40070526]
[1717832989081,0.17461727,3708.4,3708.3,8.09735526]
[1717832991827,0.062827,3708.7,3708.5,2.6965]
[1717832992037,0.062827,3708.7,3708.6,2.65685466]
[1717832992188,0.062827,3708.7,3708.6,3.07930526]
[1717833000333,0.062827,3708.7,3708.6,2.36530526]
[1717833000535,0.062827,3708.7,3708.6,3.07930526]
[1717833011870,0.062827,3708.7,3708.6,1.1364506]
[1717833012019,0.062827,3708.7,3708.6,0.4224506]
[1717833012219,0.0933703,3708.7,3708.6,0.714]
[1717833013529,0.0933703,3708.7,3708.5,0.008]
[1717833013863,0.036827,3708.7,3708.6,0.714]
[1717833014220,0.0931972,3708.7,3708.6,0.714]
[1717833014849,0.0931972,3708.7,3708.5,0.008]
[1717833015048,0.0931972,3708.7,3708.6,0.714]
[1717833015252,0.036827,3708.7,3708.6,0.714]
[1717833015423,0.0931972,3708.7,3708.6,0.714]
[1717833016868,0.0911972,3708.7,3708.6,0.714]
[1717833017077,0.034827,3708.7,3708.6,0.714]
[1717833018870,0.034827,3708.7,3708.5,0.558]
[1717833019078,0.034827,3708.7,3708.6,0.714]
[1717833020690,0.034827,3708.7,3708.6,1.1364506]
[1717833020892,0.034827,3708.7,3708.6,1.6864506]
[1717833028430,0.034827,3708.7,3708.6,5.39330526]
[1717833036169,0.034827,3708.7,3708.6,0.9724506]
[1717833036465,0.034827,3708.7,3708.6,1.6864506]
[1717833036675,0.034827,3708.7,3708.6,0.9724506]
[1717833036827,0.034827,3708.7,3708.6,1.6864506]
[1717833039184,0.05965356,3708.7,3708.6,0.9724506]
[1717833039388,0.05965356,3708.7,3708.6,1.6864506]
[1717833040236,0.02482656,3708.7,3708.6,1.6864506]
[1717833040883,2.69596,3709.3,3708.6,1.6864506]
[1717833041040,0.269596,3709.2,3708.9,0.714]
[1717833043979,2.69607,3709.1,3708.9,0.714]
[1717833051419,0.02447373,3709.0,3708.9,0.714]
[1717833054082,2.69607,3709.1,3708.9,0.714]
[1717833058017,0.034827,3709.3,3708.9,0.714]
[1717833058216,0.034827,3709.3,3709.1,0.714]
[1717833061626,0.034827,3709.3,3708.9,0.4224506]
[1717833061816,0.034827,3709.3,3709.0,0.714]
[1717833063433,0.034827,3709.3,3709.2,0.714]
[1717833063996,0.034827,3709.3,3709.2,1.264]
[1717833066624,0.034827,3709.3,3709.2,0.55]
[1717833066801,0.034827,3709.3,3709.2,1.264]
[1717833067834,0.034827,3709.3,3709.0,5.0]
[1717833068040,0.034827,3709.3,3709.1,0.55]
[1717833070747,0.034827,3709.3,3709.0,5.0]
[1717833070960,0.034827,3709.3,3709.0,5.714]
[1717833071300,2.730797,3709.3,3709.0,5.0]
[1717833071627,3.02231939,3709.3,3709.0,5.0]
[1717833076150,3.02231939,3709.3,3709.2,0.714]
[1717833076151,0.034827,3709.3,3709.2,0.714]
[1717833076309,0.034827,3709.3,3709.0,7.4505]
[1717833076508,0.034827,3709.3,3709.2,0.714]
[1717833078748,0.034827,3709.3,3709.2,1.264]
[1717833079306,0.034827,3709.3,3709.2,3.7172]
[1717833079510,0.034827,3709.3,3709.2,3.0032]
[1717833079835,0.034827,3709.3,3709.2,3.7172]
[1717833081571,0.034827,3709.3,3709.2,0.55]
[1717833081732,0.034827,3709.3,3709.2,1.264]
[1717833082869,0.034827,3709.3,3709.2,0.9724506]
[1717833083075,0.034827,3709.3,3709.2,1.264]
[1717833084281,0.034827,3709.3,3709.0,6.1364506]
[1717833086181,0.034827,3709.3,3709.0,5.0]
[1717833086973,0.034827,3709.3,3709.0,5.714]
[1717833087436,0.034827,3709.3,3709.0,6.1364506]
[1717833087636,0.034827,3709.3,3709.0,5.714]
[1717833091549,0.034827,3709.3,3709.0,5.0]
[1717833092746,2.730807,3709.3,3709.0,5.0]
[1717833096341,3.0038877,3709.3,3709.0,5.0]
[1717833104578,2.730807,3709.3,3709.0,5.0]
[1717833111110,2.730807,3709.3,3709.1,0.714]
[1717833115576,2.730807,3709.3,3709.0,5.0]
[1717833115978,2.730807,3709.3,3709.0,5.714]
[1717833116226,2.730807,3709.3,3709.0,5.0]
[1717833116431,2.730807,3709.3,3709.0,5.714]
[1717833119718,2.730807,3709.3,3709.0,5.0]
[1717833119884,2.730807,3709.3,3709.0,5.714]
[1717833124485,0.034827,3709.3,3709.2,2.9774]
[1717833124788,0.034827,3709.3,3709.2,3.5274]
[1717833126334,0.034827,3709.3,3709.2,0.55]
[1717833126500,0.034827,3709.3,3709.2,1.264]
[1717833128341,0.034827,3709.3,3709.2,0.55]
[1717833130047,0.034827,3709.3,3709.1,1.1364506]
[1717833131146,0.034827,3709.3,3709.1,0.714]
[1717833131313,0.034827,3709.3,3709.0,5.714]
[1717833131633,0.034827,3709.3,3709.1,0.55]
[1717833134037,0.034827,3709.3,3709.0,5.0]
[1717833134341,0.034827,3709.3,3709.1,0.714]
[1717833135813,0.034827,3709.3,3709.0,5.0]
[1717833136052,0.034827,3709.3,3709.0,5.714]
[1717833136958,2.69599,3709.2,3709.0,5.0]
[1717833171434,0.034827,3709.3,3709.1,3.3931506]
[1717833171747,0.034827,3709.3,3709.1,3.9431506]
[1717833174158,0.034827,3709.3,3709.2,0.714]
[1717833174456,0.034827,3709.3,3709.2,1.264]
[1717833174658,0.034827,3709.3,3709.2,0.55]
[1717833181047,0.034827,3709.3,3709.1,0.55]
[1717833183065,0.034827,3709.3,3709.2,0.714]
[1717833184981,0.034827,3709.3,3709.2,3.5965]
[1717833194965,0.034827,3709.3,3709.2,2.8825]
[1717833195163,0.034827,3709.3,3709.2,3.5965]
[1717833195349,0.034827,3709.3,3709.2,8.5965]
[1717833196080,0.034827,3709.3,3709.2,5.55]
[1717833204399,0.034827,3709.3,3709.2,11.6343]
[1717833204903,0.034827,3709.3,3709.2,13.02715466]
[1717833205392,3.40892,3710.7,3709.3,4.965173]
[1717833205600,0.340892,3710.6,3709.6,0.722]
[1717833206098,0.340892,3710.6,3709.7,0.55]
[1717833206294,0.340892,3710.6,3709.7,0.558]
[1717833206673,3.40892,3710.7,3709.7,0.558]
[1717833206879,3.40892,3710.7,3709.7,2.9283]
[1717833207567,2.69492,3710.7,3709.9,0.4224506]
[1717833208498,2.69492,3710.7,3710.0,0.55]
[1717833209569,0.02361433,3710.6,3710.0,0.55]
[1717833211362,0.02361433,3710.6,3710.1,2.3703]
[1717833211591,2.69492,3710.7,3710.1,2.3703]
[1717833214568,2.69492,3710.7,3710.2,0.714]
[1717833214873,0.02426032,3710.6,3710.2,0.714]
[1717833216166,0.02426032,3710.6,3710.1,2.3703]
[1717833216361,2.69492,3710.7,3710.0,1.264]
[1717833216574,0.27191803,3710.6,3710.0,1.264]
[1717833216776,2.69492,3710.7,3710.0,1.264]
[1717833219094,2.69492,3710.7,3710.0,0.55]
[1717833219411,2.69492,3710.7,3710.1,0.714]
[1717833224505,2.69492,3710.7,3710.0,0.55]
[1717833224506,2.69492,3710.7,3710.4,0.714]
[1717833226515,2.69492,3710.7,3710.4,3.02]
[1717833227680,2.69492,3710.7,3710.4,2.306]
[1717833230025,2.69492,3710.7,3710.2,2.306]
[1717833234432,0.4,3711.1,3711.0,2.270253]
[1717833234646,0.5696904,3711.1,3711.0,2.270253]
[1717833234806,0.72715065,3711.1,3711.0,2.270253]
[1717833235190,3.42176065,3711.1,3711.0,2.270253]
[1717833235396,3.25207025,3711.1,3711.0,2.270253]
[1717833237207,3.27571442,3711.1,3711.0,2.270253]
[1717833240619,3.25207025,3711.1,3711.0,2.270253]
[1717833262987,3.25207025,3711.1,3710.7,0.4304506]
[1717833262988,0.58264594,3711.6,3710.9,0.008]
[1717833263190,2.69461,3711.1,3710.9,0.008]
[1717833263389,2.69461,3711.1,3710.8,0.008]
[1717833263774,2.68698,3710.6,3710.5,0.55]
[1717833265191,2.68698,3710.6,3710.1,7.8524506]
[1717833265500,2.69498,3710.6,3710.1,0.4224506]
[1717833265704,2.69498,3710.6,3710.1,1.1364506]
[1717833266587,2.69527,3710.2,3710.0,2.3732]
[1717833266982,2.69527,3710.2,3710.0,3.0872]
[1717833268718,2.69527,3710.2,3710.1,0.4224506]
[1717833268893,2.69527,3710.2,3710.1,3.3456506]
[1717833269720,0.008,3710.5,3710.3,0.4224506]
[1717833269886,2.695,3710.6,3710.3,1.1364506]
[1717833271123,2.95947174,3711.7,3710.7,0.008]
[1717833271337,2.95947174,3711.7,3710.3,1.1364506]
[1717833271338,2.69448,3711.3,3711.0,0.008]
[1717833271502,2.68697,3710.7,3710.3,1.1364506]
[1717833271689,2.68697,3710.7,3710.4,2.3732]
[1717833274441,2.68697,3710.7,3710.5,0.4224506]
[1717833274734,2.68697,3710.7,3710.5,0.9724506]
[1717833279448,2.68697,3710.7,3710.5,0.55]
[1717833279620,2.68697,3710.7,3710.4,0.55]
[1717833281758,2.68697,3710.7,3710.5,2.2526]
[1717833285457,0.008,3710.8,3710.7,0.4224506]
[1717833285609,0.008,3711.0,3710.7,0.4224506]
[1717833285810,0.008,3711.0,3710.9,2.9666]
[1717833286029,2.70264,3711.1,3710.9,2.9666]
[1717833287851,2.70264,3711.1,3710.9,3.3890506]
[1717833289850,2.70264,3711.1,3710.9,2.6750506]
[1717833296481,2.70264,3711.1,3711.0,0.714]
[1717833298448,0.008,3711.1,3711.0,0.714]
[1717833298648,0.008,3711.2,3711.1,0.4224506]
[1717833306914,0.03168755,3711.2,3711.1,0.4224506]
[1717833307097,0.008,3711.2,3711.1,0.4224506]
[1717833307289,0.0321071,3711.2,3711.1,0.4224506]
[1717833307485,0.008,3711.2,3711.1,0.4224506]
[1717833307716,0.0321071,3711.2,3711.1,0.4224506]
[1717833307913,0.008,3711.2,3711.1,0.4224506]
[1717833308400,0.0321071,3711.2,3711.1,0.4224506]
[1717833308726,0.008,3711.2,3711.1,0.4224506]
[1717833309202,0.0321071,3711.2,3711.1,0.4224506]
[1717833309398,0.008,3711.2,3711.1,0.4224506]
[1717833309606,0.0321071,3711.2,3711.1,0.4224506]
[1717833309817,0.008,3711.2,3711.1,0.4224506]
[1717833310129,0.0321071,3711.2,3711.1,0.4224506]
[1717833319040,0.008,3711.2,3711.1,0.4224506]
[1717833323622,0.008,3711.2,3711.1,2.8680506]
[1717833323943,0.03206716,3711.2,3711.1,2.8680506]
[1717833324248,0.008,3711.2,3711.1,2.8680506]
[1717833328448,0.008,3711.2,3711.1,0.4224506]
[1717833367855,2.70261,3711.2,3710.9,0.4224506]
[1717833368085,0.008,3711.1,3710.9,0.4224506]
[1717833371575,0.008,3711.1,3710.8,2.4932]
[1717833371779,0.008,3711.1,3710.9,0.9724506]
[1717833372741,0.008,3711.1,3710.9,0.4224506]
[1717833372876,2.69469,3711.0,3710.9,0.4224506]
[1717833373217,2.69469,3711.0,3710.7,0.4224506]
[1717833373425,2.70269,3711.0,3710.9,0.4224506]
[1717833373586,2.69469,3711.0,3710.7,0.4224506]
[1717833373791,2.70269,3711.0,3710.7,0.4224506]
[1717833374298,2.70269,3711.0,3710.9,0.4224506]
[1717833374514,2.69469,3711.0,3710.9,0.4224506]
[1717833374833,2.69469,3711.0,3710.7,0.4224506]
[1717833374982,2.70269,3711.0,3710.7,0.4224506]
[1717833378206,2.98861199,3711.0,3710.7,0.4224506]
[1717833378441,2.98861199,3711.0,3710.2,9.7987]
[1717833378442,0.714,3710.9,3710.2,7.43]
[1717833378607,2.69517,3710.4,3710.1,0.4224506]
[1717833379950,2.6954,3710.1,3709.5,2.6943506]
[1717833380147,2.6954,3710.1,3709.5,2.2719]
[1717833380441,2.69564,3709.7,3709.4,0.4224506]
[1717833381541,2.69564,3709.7,3709.1,0.4224506]
[1717833381746,2.69564,3709.7,3709.1,1.1364506]
[1717833382210,2.69564,3709.7,3709.1,0.4224506]
[1717833382719,2.69564,3709.7,3709.1,1.1364506]
[1717833385758,2.69564,3709.7,3709.1,0.4224506]
[1717833387313,3.037404,3709.7,3709.1,0.4224506]
[1717833389097,3.037404,3709.7,3708.9,0.714]
[1717833389098,3.037404,3709.7,3708.9,1.1364506]
[1717833389291,2.69602,3709.2,3708.9,0.4224506]
[1717833389656,2.69602,3709.2,3708.8,0.714]
[1717833389858,2.69602,3709.2,3708.9,0.4224506]
[1717833392068,2.69602,3709.2,3709.0,0.714]
[1717833393493,2.69602,3709.2,3708.9,0.4224506]
[1717833400599,2.69602,3709.2,3709.0,2.4959]
[1717833403005,2.69572,3709.6,3709.1,0.4224506]
[1717833403383,2.69572,3709.6,3709.1,1.1364506]
[1717833417769,2.69572,3709.6,3709.4,0.4224506]
[1717833418064,2.69572,3709.6,3709.4,2.9183506]
[1717833424572,0.16048409,3709.8,3709.7,0.4224506]
[1717833427241,0.16048409,3709.8,3709.7,2.6797506]
[1717833428970,0.16048409,3709.8,3709.7,3.3937506]
[1717833429175,0.16048409,3709.8,3709.7,3.9177506]
[1717833430334,2.69484,3710.8,3709.8,2.2573]
[1717833430694,2.69484,3710.8,3710.6,2.2573]
[1717833431046,2.69484,3710.8,3710.7,0.3884506]
[1717833456436,2.964324,3710.8,3710.7,0.3884506]
[1717833456598,2.69484,3710.8,3710.7,0.3884506]
[1717833462210,2.69484,3710.8,3710.7,1.1024506]
[1717833462447,2.69484,3710.8,3710.7,3.5138506]
[1717833464580,2.69484,3710.8,3710.7,0.3884506]
[1717833471166,2.69453,3711.3,3711.1,0.3884506]
[1717833475921,0.58265088,3711.5,3711.4,0.3884506]
[1717833476068,2.6942,3711.7,3711.4,0.3884506]
[1717833476268,2.96362,3711.7,3711.4,0.3884506]
[1717833479294,2.6942,3711.7,3711.4,0.3884506]
[1717833479570,2.6442,3711.7,3711.4,0.3964506]
[1717833479772,2.6442,3711.7,3711.4,0.008]
[1717833479972,2.6442,3711.7,3711.3,0.008]
[1717833481609,2.6442,3711.7,3711.4,0.3884506]
[1717833481827,2.6442,3711.7,3711.4,0.3964506]
[1717833482438,2.6442,3711.7,3711.4,2.8203506]
[1717833489843,2.6442,3711.7,3711.5,0.714]
[1717833490061,2.6442,3711.7,3711.4,2.8203506]
[1717833498973,2.6442,3711.7,3711.5,0.714]
[1717833499176,2.6442,3711.7,3711.4,2.8203506]
[1717833506740,2.6442,3711.7,3711.4,0.3964506]
[1717833509894,2.69432,3711.5,3711.4,0.008]
[1717833510189,2.69432,3711.5,3711.3,0.008]
[1717833519453,2.69432,3711.5,3711.4,2.2573]
[1717833530485,2.69405,3711.9,3711.4,2.6457506]
[1717833530690,2.69405,3711.9,3711.5,0.008]
[1717833541622,3.27657979,3711.9,3711.5,0.008]
[1717833541822,2.69405,3711.9,3711.5,0.008]
[1717833542257,3.27657979,3711.9,3711.5,0.008]
[1717833542458,2.69405,3711.9,3711.5,0.008]
[1717833542870,3.27657979,3711.9,3711.5,0.008]
[1717833543076,2.69405,3711.9,3711.5,0.008]
[1717833543562,3.07489798,3711.9,3711.5,0.008]
[1717833543889,3.65742777,3711.9,3711.5,0.008]
[1717833544047,3.07489798,3711.9,3711.5,0.008]
[1717833544430,3.65742777,3711.9,3711.5,0.008]
[1717833544631,2.69418,3711.7,3711.5,0.008]
[1717833544832,2.69418,3711.7,3711.4,2.6457506]
[1717833544833,2.69418,3711.7,3711.4,2.6537506]
[1717833546469,3.27670979,3711.7,3711.4,2.6537506]
[1717833546676,2.69418,3711.7,3711.4,2.6537506]
[1717833546977,3.22043578,3711.7,3711.4,0.008]
[1717833547136,0.714,3711.5,3711.3,0.008]
[1717833547336,2.69457,3711.2,3711.1,0.008]
[1717833547532,2.69457,3711.2,3711.0,0.008]
[1717833547533,3.10041696,3711.2,3711.0,0.008]
[1717833547736,3.27709979,3711.2,3711.0,0.008]
[1717833547932,2.69457,3711.2,3711.0,0.008]
[1717833548362,3.27709979,3711.2,3711.0,0.008]
[1717833548571,2.69457,3711.2,3711.0,0.008]
[1717833551378,2.69457,3711.2,3711.0,2.4293]
[1717833551583,2.69457,3711.2,3711.1,0.008]
[1717833555283,2.69426,3711.6,3711.1,0.3964506]
[1717833555581,2.69426,3711.6,3711.3,0.3964506]
[1717833558877,2.69426,3711.6,3711.4,2.2965]
[1717833559208,2.69426,3711.6,3711.4,2.3045]
[1717833562099,2.69426,3711.6,3711.5,2.6849506]
[1717833565514,2.69426,3711.6,3711.4,0.008]
[1717833565814,2.69426,3711.6,3711.3,0.3964506]
[1717833568613,2.69426,3711.6,3711.4,2.2965]
[1717833568831,2.69426,3711.6,3711.4,2.3045]
[1717833569374,2.69426,3711.6,3711.5,0.3884506]
[1717833579006,2.69426,3711.6,3711.4,0.008]
[1717833579339,2.69426,3711.6,3711.3,0.3964506]
[1717833581250,2.69426,3711.6,3711.3,0.008]
[1717833581625,3.27679258,3711.6,3711.3,0.008]
[1717833581828,2.69426,3711.6,3711.3,0.008]
[1717833582506,2.69426,3711.6,3711.3,0.3964506]
[1717833582718,3.27679258,3711.6,3711.3,0.008]
[1717833582940,2.69426,3711.6,3711.2,0.008]
[1717833583240,2.69426,3711.6,3711.3,0.3884506]
[1717833583445,2.69426,3711.6,3711.3,0.008]
[1717833583617,3.27679258,3711.6,3711.2,0.008]
[1717833583820,2.69426,3711.6,3711.2,0.008]
[1717833584038,3.27679258,3711.6,3711.3,0.3884506]
[1717833584348,2.69426,3711.6,3711.3,0.008]
[1717833584553,2.69426,3711.6,3711.3,0.3884506]
[1717833584756,3.27679258,3711.6,3711.3,0.3964506]
[1717833584910,2.69426,3711.6,3711.3,0.3964506]
[1717833585110,3.27679258,3711.6,3711.3,0.3964506]
[1717833585347,2.69426,3711.6,3711.3,0.3964506]
[1717833587229,2.69426,3711.6,3711.3,1.1104506]
[1717833587563,2.69426,3711.6,3711.3,0.3964506]
[1717833590514,2.85476,3711.6,3711.3,0.008]
[1717833590753,2.85476,3711.6,3711.2,0.008]
[1717833592150,3.43736012,3711.6,3711.2,0.008]
[1717833592364,3.26989601,3711.6,3711.2,0.008]
[1717833592558,2.6944,3711.4,3711.2,0.008]
[1717833592770,2.69458,3711.2,3711.1,0.008]
[1717833592999,2.69458,3711.2,3711.0,0.008]
[1717833594300,3.27718012,3711.2,3711.0,0.008]
[1717833594460,2.69458,3711.2,3711.1,0.008]
[1717833599609,2.69458,3711.2,3711.0,0.008]
[1717833601279,2.85508,3711.2,3711.0,0.008]
[1717833601609,0.285508,3711.1,3711.0,0.008]
[1717833601822,2.6869,3710.7,3710.6,0.3884506]
[1717833603424,2.6869,3710.7,3710.4,1.1024506]
[1717833605392,2.6869,3710.7,3710.1,0.3884506]
[1717833605597,2.69506,3710.5,3710.2,0.714]
[1717833605919,2.69506,3710.5,3710.4,0.714]
[1717833607899,0.008,3710.7,3710.5,0.3884506]
[1717833608090,0.008,3710.9,3710.6,0.714]
[1717833608286,2.70274,3711.0,3710.7,2.4962]
[1717833608528,2.70274,3711.0,3710.8,0.714]
[1717833609588,2.70274,3711.0,3710.7,2.4962]
[1717833610429,2.70274,3711.0,3710.9,0.3884506]
[1717833610721,2.69441,3711.4,3711.2,0.3804506]
[1717833610930,2.69441,3711.4,3711.3,2.4962]
[1717833612211,2.66841,3711.4,3711.3,2.4962]
[1717833615632,2.70434256,3711.4,3711.3,2.4962]
[1717833623242,2.70434256,3711.4,3711.2,1.1024506]
[1717833623430,2.66841,3711.4,3711.2,1.0944506]
[1717833623799,0.03643896,3711.3,3711.2,1.0944506]
[1717833624014,0.03643896,3711.3,3711.2,0.3804506]
[1717833624416,2.69454,3711.2,3711.1,0.008]
[1717833624621,2.69454,3711.2,3710.9,0.008]
[1717833624830,0.03633902,3711.2,3710.8,0.008]